lending/lending_fUSD_20240824
["ID","MTS","AMOUNT","RATE_DAILY","PERIOD"]
[335735069,1724469925601,9187.79529809,0.00027,120]
[335735070,1724469933687,9187.79529809,0.00027,120]
[335735072,1724469952818,9187.79529813,0.00027,120]
[335735246,1724469968356,157.5,9.828e-05,2]
[335735311,1724470046082,200.0,9.832e-05,2]
[335735315,1724470093673,155.0,0.00010009,2]
[335735316,1724470104222,3086.96,9.833e-05,2]
[335735317,1724470111750,278.75362419,0.00025,60]
[335735326,1724470154271,360.68425353,0.00010009,2]
[335735327,1724470168435,1755.13353525,0.00010009,2]
[335735338,1724470177568,220.59,9.833e-05,2]
[335735339,1724470194599,659.49263851,0.00010009,2]
[335735343,1724470220310,2146.59833109,0.00010009,2]
[335735344,1724470220856,236.97801058,0.00010009,2]
[335735345,1724470222642,331.1827371,0.00010009,2]
[335735354,1724470231992,-1141.42837333,0.00010097,2]
[335735356,1724470232001,-796.07378855,0.000101,2]
[335735358,1724470232011,-300.0,0.00010414,2]
[335735361,1724470232021,-1108.301799,0.00010415,2]
[335735363,1724470232032,-601.98,0.00010467,2]
[335735366,1724470232043,-366.22832122,0.00010699,2]
[335735368,1724470232052,-150.0,0.00010727,2]
[335735371,1724470232061,-150.0,0.00010734,2]
[335735374,1724470232071,-150.0,0.00010739,2]
[335735376,1724470232080,-150.0,0.00010744,2]
[335735378,1724470232090,-150.0,0.00010746,2]
[335735380,1724470232099,-150.0,0.00010747,2]
[335735382,1724470232108,-150.0,0.00010757,2]
[335735384,1724470232117,-150.0,0.00010764,2]
[335735386,1724470232127,-150.0,0.00010764,2]
[335735388,1724470232136,-150.0,0.00010767,2]
[335735390,1724470232146,-150.0,0.00010768,2]
[335735392,1724470232156,-150.0,0.00010776,2]
[335735394,1724470232166,-150.0,0.00010776,2]
[335735396,1724470232175,-150.0,0.00010777,2]
[335735397,1724470232184,-150.0,0.00010778,2]
[335735398,1724470232193,-150.0,0.0001079,2]
[335735399,1724470232202,-150.0,0.00010792,2]
[335735400,1724470232211,-150.0,0.00010795,2]
[335735401,1724470232220,-172.96358557,0.00010799,2]
[335735402,1724470232230,-150.0,0.00010799,2]
[335735403,1724470232239,-22293.4989,0.000108,2]
[335735404,1724470232247,-155.94399844,0.000108,2]
[335735405,1724470232257,-12325.47431908,0.000108,2]
[335735406,1724470232266,-150.0,0.00010801,2]
[335735407,1724470232275,-150.0,0.00010809,2]
[335735408,1724470232284,-150.0,0.00010815,2]
[335735409,1724470232293,-150.0,0.00010824,2]
[335735410,1724470232303,-150.0,0.00010829,2]
[335735411,1724470232312,-150.0,0.00010833,2]
[335735412,1724470232321,-150.0,0.00010838,2]
[335735413,1724470232330,-150.0,0.0001084,2]
[335735414,1724470232338,-150.0,0.00010851,2]
[335735415,1724470232348,-150.0,0.00010851,2]
[335735416,1724470232359,-7500.0,0.00010858,2]
[335735417,1724470232369,-150.0,0.00010861,2]
[335735418,1724470232380,-150.0,0.00010861,2]
[335735419,1724470232391,-155.0,0.00010862,2]
[335735420,1724470232401,-150.0,0.00010864,2]
[335735421,1724470232410,-150.0,0.00010866,2]
[335735422,1724470232420,-150.0,0.00010868,2]
[335735423,1724470232430,-6891.84108451,0.0001088,2]
[335735424,1724470232440,-150.0,0.00010883,2]
[335735425,1724470232450,-150.0,0.00010886,2]
[335735426,1724470232460,-2157.41553,0.0001089,2]
[335735427,1724470232470,-150.0,0.00010892,2]
[335735428,1724470232479,-171.17415424,0.00010892,2]
[335735429,1724470232489,-150.0,0.00010894,2]
[335735430,1724470232499,-150.0,0.00010894,2]
[335735431,1724470232510,-171.17415423,0.00010895,2]
[335735432,1724470232524,-150.0,0.00010896,2]
[335735433,1724470232534,-150.0,0.00010896,2]
[335735434,1724470232544,-171.17415423,0.00010897,2]
[335735435,1724470232554,-423.8774,0.00010899,2]
[335735436,1724470232564,-82030.1636,0.00010899,2]
[335735437,1724470232574,-3204.28859472,0.00010899,2]
[335735438,1724470232584,-179.18144967,0.00010899,2]
[335735439,1724470232593,-179.18144961,0.00010899,2]
[335735440,1724470232603,-179.18144961,0.00010899,2]
[335735441,1724470232612,-179.18144961,0.00010899,2]
[335735442,1724470232621,-179.18144961,0.00010899,2]
[335735443,1724470232630,-179.18144961,0.00010899,2]
[335735444,1724470232639,-3204.28859471,0.000109,2]
[335735445,1724470232648,-131585.04117556,0.000109,2]
[335735446,1724470232685,-472.04,0.000109,2]
[335735447,1724470232697,-577.08950482,0.000109,2]
[335735448,1724470232707,-1670.90790627,0.000109,2]
[335735449,1724470232721,-1757.76879465,0.000109,2]
[335735450,1724470232756,-8591.01039393,0.000109,2]
[335735451,1724470232767,-15739.85359747,0.000109,2]
[335735452,1724470232778,-493.5770007,0.000109,2]
[335735453,1724470232788,-264.82796935,0.000109,2]
[335735454,1724470232799,-3869.0471706,0.000109,2]
[335735455,1724470232822,-349.70936002,0.000109,2]
[335735456,1724470232833,-3826.9705267,0.000109,2]
[335735457,1724470232869,-150.0,0.00010859,2]
[335735458,1724470232878,-14972.30506371,0.000109,2]
[335735459,1724470232889,-12546.78483622,0.000109,2]
[335735460,1724470232898,-6.1965911,0.000109,2]
[335735461,1724470232909,-143.8034089,0.000109,2]
[335735462,1724470232919,-765.5560722,0.000109,2]
[335735463,1724470235610,162.86951245,0.00010009,2]
[335735464,1724470238058,-345.36063455,0.00010858,2]
[335735465,1724470238068,-179.18144961,0.00010899,2]
[335735466,1724470238077,-194.90791584,0.000109,2]
[335735468,1724470238206,-443.13092382,0.000109,2]
[335735469,1724470238217,-542.99403541,0.000109,2]
[335735470,1724470238227,-717.96206054,0.000109,2]
[335735471,1724470238239,-539.7375869,0.000109,2]
[335735472,1724470238248,-1005.0,0.000109,2]
[335735473,1724470238257,-168.24795319,0.000109,2]
[335735474,1724470238266,-20.47167329,0.000109,2]
[335735475,1724470238277,-147.77627988,0.000109,2]
[335735477,1724470238286,-171.17415423,0.000109,2]
[335735478,1724470238295,-168.24795317,0.000109,2]
[335735479,1724470238304,-168.24795317,0.000109,2]
[335735480,1724470238313,-150.0,0.00010906,2]
[335735481,1724470238322,-150.0,0.00010913,2]
[335735482,1724470238332,-150.0,0.00010922,2]
[335735483,1724470238341,-150.0,0.00010925,2]
[335735484,1724470238350,-150.0,0.00010926,2]
[335735485,1724470238360,-150.0,0.00010932,2]
[335735486,1724470238371,-150.0,0.00010932,2]
[335735487,1724470238380,-150.0,0.00010936,2]
[335735488,1724470238390,-150.0,0.00010948,2]
[335735489,1724470238401,-150.0,0.00010952,2]
[335735490,1724470238410,-150.0,0.00010955,2]
[335735491,1724470238422,-150.0,0.00010957,2]
[335735492,1724470238432,-10912.68,0.00010958,2]
[335735493,1724470238443,-9554.49,0.00010958,2]
[335735494,1724470238454,-500.0,0.00010958,2]
[335735495,1724470238464,-12440.62,0.00010958,2]
[335735496,1724470238475,-1015.46,0.00010958,2]
[335735497,1724470238485,-963.87,0.00010958,2]
[335735498,1724470238497,-584.58,0.00010958,2]
[335735499,1724470238506,-3837.74,0.00010958,2]
[335735500,1724470238515,-500.0,0.00010958,2]
[335735501,1724470238530,-7896.94,0.00010958,2]
[335735502,1724470238539,-2162.9,0.00010958,2]
[335735503,1724470238548,-233.67655987,0.00010958,2]
[335735504,1724470238560,-651.50000001,0.00010958,2]
[335735505,1724470238573,-516.57344012,0.00010958,2]
[335735506,1724470238584,-500.0,0.00010958,2]
[335735507,1724470238593,-500.0,0.00010958,2]
[335735508,1724470238605,-500.0,0.00010958,2]
[335735509,1724470238615,-494.14655988,0.00010958,2]
[335735510,1724470238627,-887.5,0.00010958,2]
[335735511,1724470238648,-888.21344012,0.00010958,2]
[335735513,1724470238659,-1592.63,0.00010958,2]
[335735515,1724470238670,-500.0,0.00010958,2]
[335735516,1724470238680,-500.0,0.00010958,2]
[335735517,1724470238690,-566.03,0.00010958,2]
[335735518,1724470238700,-552.22,0.00010958,2]
[335735519,1724470238709,-931.04,0.00010958,2]
[335735520,1724470238718,-4841.7,0.00010958,2]
[335735521,1724470238728,-500.0,0.00010958,2]
[335735522,1724470238736,-1039.91,0.00010958,2]
[335735523,1724470238746,-500.0,0.00010958,2]
[335735524,1724470238757,-500.0,0.00010958,2]
[335735525,1724470238766,-1036.63,0.00010958,2]
[335735526,1724470238776,-500.0,0.00010958,2]
[335735527,1724470238786,-500.0,0.00010958,2]
[335735528,1724470238796,-1111.65,0.00010958,2]
[335735529,1724470238805,-306.05837589,0.00010958,2]
[335735530,1724470238814,-500.0,0.00010958,2]
[335735531,1724470238824,-500.0,0.00010958,2]
[335735532,1724470238834,-1001.24,0.00010958,2]
[335735533,1724470238843,-2542.53,0.00010958,2]
[335735534,1724470238853,-500.0,0.00010958,2]
[335735535,1724470238863,-531.43,0.00010958,2]
[335735536,1724470238873,-3080.23,0.00010958,2]
[335735537,1724470238883,-826.03,0.00010958,2]
[335735538,1724470238892,-595.61878023,0.00010958,2]
[335735539,1724470238902,-623.77,0.00010958,2]
[335735540,1724470238911,-3463.03,0.00010958,2]
[335735541,1724470238921,-500.0,0.00010958,2]
[335735542,1724470238930,-786.46,0.00010958,2]
[335735543,1724470238940,-4593.3,0.00010958,2]
[335735544,1724470238949,-3055.66,0.00010958,2]
[335735545,1724470238958,-840.76,0.00010958,2]
[335735546,1724470238969,-18360.11,0.00010958,2]
[335735547,1724470238979,-500.0,0.00010958,2]
[335735548,1724470238989,-500.0,0.00010958,2]
[335735549,1724470238999,-500.0,0.00010958,2]
[335735550,1724470239010,-500.0,0.00010958,2]
[335735551,1724470239019,-500.0,0.00010958,2]
[335735552,1724470239028,-500.0,0.00010958,2]
[335735553,1724470239038,-500.0,0.00010958,2]
[335735554,1724470239049,-500.0,0.00010958,2]
[335735555,1724470239059,-500.0,0.00010958,2]
[335735556,1724470239068,-200.88028984,0.00010958,2]
[335735557,1724470239078,-500.0,0.00010958,2]
[335735558,1724470239087,-500.0,0.00010958,2]
[335735559,1724470239096,-500.0,0.00010958,2]
[335735560,1724470239106,-500.0,0.00010958,2]
[335735561,1724470239115,-1017.14,0.00010958,2]
[335735562,1724470239124,-1017.14,0.00010958,2]
[335735563,1724470239134,-500.0,0.00010958,2]
[335735564,1724470239143,-500.0,0.00010958,2]
[335735565,1724470239152,-1255.96,0.00010958,2]
[335735566,1724470239161,-1255.96,0.00010958,2]
[335735567,1724470239170,-500.0,0.00010958,2]
[335735568,1724470239179,-500.0,0.00010958,2]
[335735569,1724470239189,-500.0,0.00010958,2]
[335735570,1724470239198,-2398.07,0.00010958,2]
[335735571,1724470239207,-2398.07,0.00010958,2]
[335735572,1724470239216,-6532.23,0.00010958,2]
[335735573,1724470239225,-5138.21,0.00010958,2]
[335735574,1724470239234,-500.0,0.00010958,2]
[335735575,1724470239244,-500.0,0.00010958,2]
[335735576,1724470239253,-500.0,0.00010958,2]
[335735577,1724470239262,-500.0,0.00010958,2]
[335735578,1724470239271,-500.0,0.00010958,2]
[335735579,1724470239280,-500.0,0.00010958,2]
[335735580,1724470239290,-1738.2,0.00010958,2]
[335735581,1724470239299,-500.0,0.00010958,2]
[335735582,1724470239307,-500.0,0.00010958,2]
[335735583,1724470239316,-500.0,0.00010958,2]
[335735584,1724470239325,-500.0,0.00010958,2]
[335735585,1724470239334,-4740.01,0.00010958,2]
[335735587,1724470239343,-8433.09,0.00010958,2]
[335735588,1724470239352,-8433.09,0.00010958,2]
[335735590,1724470239361,-500.0,0.00010958,2]
[335735592,1724470239370,-500.0,0.00010958,2]
[335735594,1724470239379,-500.0,0.00010958,2]
[335735596,1724470239388,-2863.61,0.00010958,2]
[335735598,1724470239397,-2863.61,0.00010958,2]
[335735600,1724470239406,-500.0,0.00010958,2]
[335735602,1724470239415,-500.0,0.00010958,2]
[335735604,1724470239424,-4571.14,0.00010958,2]
[335735606,1724470239434,-560.57293995,0.00010958,2]
[335735608,1724470239443,-2530.38,0.00010958,2]
[335735610,1724470239452,-2530.38,0.00010958,2]
[335735612,1724470239460,-524.52421141,0.00010958,2]
[335735614,1724470239470,-1280.57,0.00010958,2]
[335735616,1724470239478,-1280.57,0.00010958,2]
[335735618,1724470239487,-585.03,0.00010958,2]
[335735620,1724470239496,-500.0,0.00010958,2]
[335735622,1724470239505,-599.44,0.00010958,2]
[335735624,1724470239515,-599.44,0.00010958,2]
[335735626,1724470239528,-4408.49,0.00010958,2]
[335735628,1724470239538,-623.34,0.00010958,2]
[335735630,1724470239547,-500.0,0.00010958,2]
[335735632,1724470239556,-8966.76,0.00010958,2]
[335735634,1724470239577,-500.0,0.00010958,2]
[335735636,1724470239586,-500.0,0.00010958,2]
[335735638,1724470239595,-558.2926101,0.00010958,2]
[335735640,1724470239607,-511.55683389,0.00010958,2]
[335735642,1724470239618,-500.0,0.00010958,2]
[335735644,1724470239627,-500.0,0.00010958,2]
[335735646,1724470239636,-500.0,0.00010958,2]
[335735648,1724470239646,-4111.63,0.00010958,2]
[335735650,1724470239654,-500.0,0.00010958,2]
[335735652,1724470239664,-494.51459853,0.00010958,2]
[335735654,1724470239672,-500.0,0.00010958,2]
[335735656,1724470239681,-500.0,0.00010958,2]
[335735658,1724470239690,-500.0,0.00010958,2]
[335735660,1724470239700,-546.13100028,0.00010958,2]
[335735661,1724470239709,-500.0,0.00010958,2]
[335735663,1724470239718,-500.0,0.00010958,2]
[335735665,1724470239727,-726.21,0.00010958,2]
[335735667,1724470239736,-641.21302538,0.00010958,2]
[335735669,1724470239744,-159.94,0.00010959,2]
[335735671,1724470239754,-153.92,0.00010959,2]
[335735673,1724470239763,-500.0,0.0001096,2]
[335735675,1724470239771,-500.0,0.0001096,2]
[335735677,1724470239781,-150.0,0.00010963,2]
[335735679,1724470239790,-150.0,0.00010968,2]
[335735681,1724470239799,-150.0,0.00010969,2]
[335735683,1724470239810,-200.0,0.00010973,2]
[335735684,1724470239819,-150.0,0.00010973,2]
[335735686,1724470239828,-150.0,0.00010976,2]
[335735688,1724470239836,-150.0,0.00010977,2]
[335735690,1724470239845,-150.0,0.00010977,2]
[335735692,1724470239854,-150.0,0.00010978,2]
[335735694,1724470239863,-150.0,0.00010986,2]
[335735696,1724470239873,-150.0,0.00010987,2]
[335735698,1724470239882,-153.25791357,0.00010987,2]
[335735700,1724470239892,-462.45543718,0.00010989,2]
[335735702,1724470239901,-228.60955333,0.00010989,2]
[335735704,1724470239910,-500.0,0.00010989,2]
[335735706,1724470239920,-374.41635475,0.00010989,2]
[335735708,1724470239930,-851974.93232948,0.0001099,2]
[335735710,1724470239941,-163.06333231,0.00010992,2]
[335735712,1724470239951,-633.48349886,0.00010992,2]
[335735714,1724470239960,-150.0,0.00010994,2]
[335735716,1724470239969,-150.0,0.00010995,2]
[335735718,1724470239978,-2542.53,0.00010996,2]
[335735721,1724470239989,-826.03,0.00010996,2]
[335735723,1724470239999,-3463.03,0.00010996,2]
[335735725,1724470240008,-3055.66,0.00010996,2]
[335735727,1724470240017,-500.0,0.00010996,2]
[335735728,1724470240027,-6532.23,0.00010996,2]
[335735730,1724470240036,-5138.21,0.00010996,2]
[335735732,1724470240045,-4740.01,0.00010996,2]
[335735734,1724470240054,-585.03,0.00010996,2]
[335735736,1724470240076,-500.0,0.00010996,2]
[335735738,1724470240086,-500.0,0.00010996,2]
[335735740,1724470240095,-500.0,0.00010996,2]
[335735742,1724470240104,-726.21,0.00010996,2]
[335735744,1724470240114,-153.25791357,0.00010996,2]
[335735746,1724470240123,-500.0,0.00010997,2]
[335735748,1724470240132,-500.0,0.00010997,2]
[335735751,1724470240142,-500.0,0.00010997,2]
[335735753,1724470240151,-500.0,0.00010997,2]
[335735755,1724470240160,-500.0,0.00010997,2]
[335735757,1724470240170,-500.0,0.00010997,2]
[335735760,1724470240179,-500.0,0.00010997,2]
[335735762,1724470240188,-500.0,0.00010997,2]
[335735764,1724470240197,-500.0,0.00010997,2]
[335735767,1724470240206,-500.0,0.00010997,2]
[335735768,1724470240216,-1017.14,0.00010997,2]
[335735770,1724470240225,-1017.14,0.00010997,2]
[335735772,1724470240234,-500.0,0.00010997,2]
[335735774,1724470240243,-500.0,0.00010997,2]
[335735776,1724470240253,-1255.96,0.00010997,2]
[335735778,1724470240262,-1255.96,0.00010997,2]
[335735780,1724470240271,-500.0,0.00010997,2]
[335735782,1724470240281,-500.0,0.00010997,2]
[335735784,1724470240291,-2398.07,0.00010997,2]
[335735786,1724470240300,-2398.07,0.00010997,2]
[335735788,1724470240312,-500.0,0.00010997,2]
[335735790,1724470240322,-500.0,0.00010997,2]
[335735792,1724470240332,-500.0,0.00010997,2]
[335735793,1724470240341,-500.0,0.00010997,2]
[335735809,1724470240494,-500.0,0.00010997,2]
[335735811,1724470240503,-500.0,0.00010997,2]
[335735813,1724470240513,-500.0,0.00010997,2]
[335735835,1724470240736,-500.0,0.00010997,2]
[335735836,1724470240745,-500.0,0.00010997,2]
[335735839,1724470240755,-500.0,0.00010997,2]
[335735840,1724470240764,-8433.09,0.00010997,2]
[335735842,1724470240773,-8433.09,0.00010997,2]
[335735844,1724470240782,-500.0,0.00010997,2]
[335735846,1724470240792,-500.0,0.00010997,2]
[335735848,1724470240802,-2863.61,0.00010997,2]
[335735850,1724470240812,-2863.61,0.00010997,2]
[335735852,1724470240821,-500.0,0.00010997,2]
[335735854,1724470240831,-500.0,0.00010997,2]
[335735856,1724470240840,-2530.38,0.00010997,2]
[335735857,1724470240849,-2530.38,0.00010997,2]
[335735859,1724470240858,-1280.57,0.00010997,2]
[335735861,1724470240868,-1280.57,0.00010997,2]
[335735863,1724470240877,-599.44,0.00010997,2]
[335735865,1724470240886,-599.44,0.00010997,2]
[335735867,1724470240896,-269.3032935,0.00010998,2]
[335735869,1724470240905,-10912.68,0.00010998,2]
[335735871,1724470240914,-10912.68,0.00010998,2]
[335735872,1724470240924,-500.0,0.00010998,2]
[335735874,1724470240933,-500.0,0.00010998,2]
[335735877,1724470240943,-1015.46,0.00010998,2]
[335735880,1724470240952,-1015.46,0.00010998,2]
[335735883,1724470240962,-963.87,0.00010998,2]
[335735885,1724470240971,-963.87,0.00010998,2]
[335735887,1724470240981,-3837.74,0.00010998,2]
[335735889,1724470240990,-3837.74,0.00010998,2]
[335735891,1724470240999,-500.0,0.00010998,2]
[335735893,1724470241008,-500.0,0.00010998,2]
[335735895,1724470241018,-7896.94,0.00010998,2]
[335735897,1724470241026,-7896.94,0.00010998,2]
[335735899,1724470241035,-162.04721427,0.00010998,2]
[335735900,1724470241044,-500.0,0.00010998,2]
[335735902,1724470241054,-2269.86,0.00010998,2]
[335735904,1724470241066,-2269.86,0.00010998,2]
[335735906,1724470241074,-500.0,0.00010998,2]
[335735908,1724470241083,-500.0,0.00010998,2]
[335735910,1724470241093,-500.0,0.00010998,2]
[335735912,1724470241102,-500.0,0.00010998,2]
[335735914,1724470241111,-566.03,0.00010998,2]
[335735916,1724470241121,-931.04,0.00010998,2]
[335735918,1724470241130,-931.04,0.00010998,2]
[335735920,1724470241140,-500.0,0.00010998,2]
[335735922,1724470241149,-500.0,0.00010998,2]
[335735924,1724470241158,-500.0,0.00010998,2]
[335735926,1724470241167,-500.0,0.00010998,2]
[335735928,1724470241176,-500.0,0.00010998,2]
[335735930,1724470241185,-500.0,0.00010998,2]
[335735932,1724470241194,-500.0,0.00010998,2]
[335735933,1724470241203,-500.0,0.00010998,2]
[335735935,1724470241212,-2542.53,0.00010998,2]
[335735937,1724470241221,-2542.53,0.00010998,2]
[335735939,1724470241230,-2542.53,0.00010998,2]
[335735941,1724470241239,-2542.53,0.00010998,2]
[335735943,1724470241248,-2542.53,0.00010998,2]
[335735945,1724470241257,-500.0,0.00010998,2]
[335735947,1724470241267,-2542.53,0.00010998,2]
[335735949,1724470241276,-500.0,0.00010998,2]
[335735951,1724470241285,-2542.53,0.00010998,2]
[335735953,1724470241294,-2542.53,0.00010998,2]
[335735955,1724470241303,-2542.53,0.00010998,2]
[335735957,1724470241314,-2542.53,0.00010998,2]
[335735959,1724470241323,-3080.23,0.00010998,2]
[335735960,1724470241332,-3080.23,0.00010998,2]
[335735962,1724470241341,-826.03,0.00010998,2]
[335735964,1724470241350,-826.03,0.00010998,2]
[335735966,1724470241359,-826.03,0.00010998,2]
[335735968,1724470241368,-826.03,0.00010998,2]
[335735970,1724470241377,-826.03,0.00010998,2]
[335735972,1724470241386,-826.03,0.00010998,2]
[335735974,1724470241395,-826.03,0.00010998,2]
[335735976,1724470241403,-826.03,0.00010998,2]
[335735978,1724470241412,-826.03,0.00010998,2]
[335735980,1724470241421,-826.03,0.00010998,2]
[335735982,1724470241430,-3463.03,0.00010998,2]
[335735984,1724470241439,-3463.03,0.00010998,2]
[335735986,1724470241447,-3463.03,0.00010998,2]
[335735988,1724470241456,-602.98571394,0.00010998,2]
[335735990,1724470241465,-3463.03,0.00010998,2]
[335735992,1724470241474,-3463.03,0.00010998,2]
[335735993,1724470241483,-3463.03,0.00010998,2]
[335735995,1724470241492,-3463.03,0.00010998,2]
[335735997,1724470241501,-3463.03,0.00010998,2]
[335735999,1724470241510,-3463.03,0.00010998,2]
[335736001,1724470241520,-4593.3,0.00010998,2]
[335736002,1724470241531,-3463.03,0.00010998,2]
[335736004,1724470241540,-4593.3,0.00010998,2]
[335736006,1724470241549,-3055.66,0.00010998,2]
[335736008,1724470241558,-3055.66,0.00010998,2]
[335736010,1724470241567,-3055.66,0.00010998,2]
[335736012,1724470241576,-3055.66,0.00010998,2]
[335736014,1724470241585,-3055.66,0.00010998,2]
[335736015,1724470241594,-3055.66,0.00010998,2]
[335736017,1724470241604,-3055.66,0.00010998,2]
[335736019,1724470241613,-3055.66,0.00010998,2]
[335736021,1724470241622,-3055.66,0.00010998,2]
[335736023,1724470241632,-3055.66,0.00010998,2]
[335736025,1724470241643,-613.12,0.00010998,2]
[335736026,1724470241653,-840.76,0.00010998,2]
[335736029,1724470241662,-840.76,0.00010998,2]
[335736031,1724470241672,-18360.11,0.00010998,2]
[335736033,1724470241683,-18360.11,0.00010998,2]
[335736035,1724470241692,-545.26,0.00010998,2]
[335736037,1724470241702,-512.60577786,0.00010998,2]
[335736039,1724470241712,-500.0,0.00010998,2]
[335736041,1724470241722,-500.0,0.00010998,2]
[335736043,1724470241731,-558.95751344,0.00010998,2]
[335736045,1724470241740,-151.85321544,0.00010998,2]
[335736046,1724470241749,-677.96,0.00010998,2]
[335736048,1724470241758,-500.0,0.00010998,2]
[335736050,1724470241767,-500.0,0.00010998,2]
[335736052,1724470241776,-500.0,0.00010998,2]
[335736054,1724470241785,-500.0,0.00010998,2]
[335736056,1724470241794,-500.0,0.00010998,2]
[335736058,1724470241803,-500.0,0.00010998,2]
[335736060,1724470241814,-500.0,0.00010998,2]
[335736062,1724470241823,-500.0,0.00010998,2]
[335736064,1724470241832,-485.01052885,0.00010998,2]
[335736066,1724470241841,-225.69585346,0.00010998,2]
[335736068,1724470241851,-2319.31,0.00010998,2]
[335736071,1724470241861,-1017.14,0.00010998,2]
[335736073,1724470241871,-1017.14,0.00010998,2]
[335736075,1724470241882,-1017.14,0.00010998,2]
[335736077,1724470241893,-1017.14,0.00010998,2]
[335736079,1724470241904,-1017.14,0.00010998,2]
[335736081,1724470241915,-500.0,0.00010998,2]
[335736083,1724470241925,-1017.14,0.00010998,2]
[335736085,1724470241934,-500.0,0.00010998,2]
[335736087,1724470241943,-1017.14,0.00010998,2]
[335736089,1724470241953,-500.0,0.00010998,2]
[335736091,1724470241963,-1017.14,0.00010998,2]
[335736093,1724470241973,-500.0,0.00010998,2]
[335736096,1724470241984,-500.0,0.00010998,2]
[335736098,1724470241993,-500.0,0.00010998,2]
[335736100,1724470242003,-500.0,0.00010998,2]
[335736102,1724470242012,-500.0,0.00010998,2]
[335736104,1724470242022,-500.0,0.00010998,2]
[335736105,1724470242031,-500.0,0.00010998,2]
[335736107,1724470242040,-500.0,0.00010998,2]
[335736109,1724470242051,-599.72487285,0.00010998,2]
[335736111,1724470242061,-1255.96,0.00010998,2]
[335736113,1724470242070,-1255.96,0.00010998,2]
[335736115,1724470242079,-1255.96,0.00010998,2]
[335736117,1724470242087,-1255.96,0.00010998,2]
[335736119,1724470242097,-1255.96,0.00010998,2]
[335736121,1724470242106,-1255.96,0.00010998,2]
[335736123,1724470242115,-1255.96,0.00010998,2]
[335736125,1724470242124,-1255.96,0.00010998,2]
[335736126,1724470242133,-500.0,0.00010998,2]
[335736128,1724470242142,-500.0,0.00010998,2]
[335736130,1724470242150,-500.0,0.00010998,2]
[335736132,1724470242159,-500.0,0.00010998,2]
[335736134,1724470242168,-500.0,0.00010998,2]
[335736135,1724470242177,-500.0,0.00010998,2]
[335736136,1724470242186,-500.0,0.00010998,2]
[335736137,1724470242195,-394.53194278,0.00010998,2]
[335736138,1724470242207,-500.0,0.00010998,2]
[335736139,1724470242216,-1255.96,0.00010998,2]
[335736140,1724470242225,-1255.96,0.00010998,2]
[335736141,1724470242234,-500.0,0.00010998,2]
[335736142,1724470242243,-1255.96,0.00010998,2]
[335736143,1724470242252,-170.76435134,0.00010998,2]
[335736144,1724470242262,-1255.96,0.00010998,2]
[335736145,1724470242271,-1255.96,0.00010998,2]
[335736146,1724470242280,-1255.96,0.00010998,2]
[335736147,1724470242289,-1255.96,0.00010998,2]
[335736148,1724470242298,-1255.96,0.00010998,2]
[335736149,1724470242309,-1255.96,0.00010998,2]
[335736150,1724470242318,-1255.96,0.00010998,2]
[335736151,1724470242328,-1255.96,0.00010998,2]
[335736152,1724470242337,-1256.04529899,0.00010998,2]